Cogmind - Beta 11 X8 @@@ ROGUE MODE // 2021.10.31 @ 03:00:01 Player: WayneKnight Result: Self-destructed Performance ------------- Evolutions (6) 3000 Regions Visited (22) 4400 Robots Destroyed (144) 720 Value Destroyed (4418) 4418 Prototype IDs (31) 620 Alien Tech Used (0) 0 Bonus (653) 653 TOTAL SCORE: 13811 Bonus ------- Follower Combat Kills 28 Met Warlord at Base 500 MAIN.C Attacked Warlord 500 Friendly Fire -375 Cogmind --------- Core Integrity 996/1150 Matter 154/300 Energy 8/100 System Corruption 4% Temperature Cool (65) Movement Hovering (61) Location -4/Upper Caves Parts ------- > --- POWER (2) -------- (None) > --- PROPULSION (6) --- Gravmag Array Improved Gyrokinetic Inverter > --- UTILITY (9) ------ Large Storage Unit Enhanced Optical Array Experimental Sensor Array Advanced Signal Interpreter Hacking Suite Hacking Suite System Shield > --- WEAPON (2) ------- Vortex Lance > --- INVENTORY (15) --- Light Fission Core Micro Fission Core Improved Gyrokinetic Inverter Q-thruster Medium Storage Unit Advanced Weight Redist. System Improved Cloaking Device EM Shield Improved Dynamic Insulation System Long-range Proton Cannon Magnetic Acceleration Cannon Advanced EMP Blaster Enhanced Force Lance Vortex Lance (21) Peak State ------------ > --- POWER ------------ Fission Core > --- PROPULSION ------- Gravmag Array Gravmag Array Improved Antigrav System Improved Gyrokinetic Inverter > --- UTILITY ---------- Medium Storage Unit Enhanced Optical Array Experimental Sensor Array Advanced Signal Interpreter Advanced Transmission Jammer Improved Propulsion Shielding Hacking Suite System Shield Improved System Shield > --- WEAPON ----------- Vortex Lance Vortex Lance > --- INVENTORY -------- Micro Fission Core Q-thruster Advanced Weight Redist. System Improved Cloaking Device EM Shield Long-range Proton Cannon Heavy Machine Gun KE Penetrator Magnetic Acceleration Cannon Advanced EMP Blaster [Rating: 103] Favorites ----------- Power Improved Ion Engine Engine Improved Ion Engine Power Core Fission Core Propulsion Carbon-fiber Leg Treads Light Treads Leg Carbon-fiber Leg Hover Unit Aerolev Unit Flight Unit Q-thruster Utility Light Armor Plating Device Experimental Sensor Array Storage Large Storage Unit Processor Improved Signal Interpreter Hackware System Shield Protection Light Armor Plating Weapon Autogun Energy Gun Improved Medium Laser Ballistic Gun Autogun Launcher Mini Grenade Launcher Slashing Weapon Makeshift Axe Piercing Weapon Vortex Lance Special Melee Weapon Datajack Build | -11 -10 -10 -9 -9 -9 -8 -8 -8 -8 -6 -5 -5 -5 -5 -5 -5 -4 -4 -4 -4 -4 -4 ------- Run | Scr Mat Min Mat Min Exi Min Mat Sto Rec Fac Fac Was Fac Upp Upp War Pro Fac Was Fac Upp Upp Slots Evolved 12 | . . . 2 . . . 2 . . 4 2 . . . . . . 2 . . . . Power 1 | . . . . . . . . . . . . . . . . . . 1 . . . . Propulsion 4 | . . . . . . . 1 . . 1 1 . . . . . . 1 . . . . Utility 7 | . . . 2 . . . 1 . . 3 1 . . . . . . . . . . . Weapon . | . . . . . . . . . . . . . . . . . . . . . . . Parts Attached 168 | 1 13 . 25 8 1 16 31 33 . 5 4 . 3 2 5 4 4 6 . 1 3 3 Power 11 | . . . 3 1 . . 2 3 . . 1 . . . . . 1 . . . . . Engine 8 | . . . 3 1 . . 2 2 . . . . . . . . . . . . . . Core 3 | . . . . . . . . 1 . . 1 . . . . . 1 . . . . . Reactor . | . . . . . . . . . . . . . . . . . . . . . . . Propulsion 37 | . 4 . 5 2 . 4 7 5 . 1 . . 2 . 1 . 3 3 . . . . Treads 12 | . 4 . 2 . . . 6 . . . . . . . . . . . . . . . Leg 9 | . . . 2 2 . 4 1 . . . . . . . . . . . . . . . Wheel . | . . . . . . . . . . . . . . . . . . . . . . . Hover 14 | . . . . . . . . 5 . 1 . . 2 . 1 . 2 3 . . . . Flight 2 | . . . 1 . . . . . . . . . . . . . 1 . . . . . Utility 59 | . 4 . 9 4 . 4 9 13 . 3 3 . 1 . 2 2 . 3 . 1 1 . Device 18 | . . . . . . 1 3 7 . 2 1 . . . 1 . . 3 . . . . Storage 5 | . 3 . . . . . . 1 . . . . . . . . . . . . 1 . Processor 7 | . . . . 1 . 2 2 . . . 1 . . . 1 . . . . . . . Hackware 5 | . . . . . . . . 1 . 1 1 . 1 . . . . . . 1 . . Protection 24 | . 1 . 9 3 . 1 4 4 . . . . . . . 2 . . . . . . Artifact . | . . . . . . . . . . . . . . . . . . . . . . . Weapon 61 | 1 5 . 8 1 1 8 13 12 . 1 . . . 2 2 2 . . . . 2 3 Energy Gun 7 | . 2 . 1 . . 2 2 . . . . . . . . . . . . . . . Energy Cannon . | . . . . . . . . . . . . . . . . . . . . . . . Ballistic Gun 30 | 1 3 . 7 1 . 5 7 6 . . . . . . . . . . . . . . Ballistic Cannon . | . . . . . . . . . . . . . . . . . . . . . . . Launcher 13 | . . . . . 1 1 3 3 . . . . . 1 1 . . . . . 1 2 Special Weapon . | . . . . . . . . . . . . . . . . . . . . . . . Impact Weapon . | . . . . . . . . . . . . . . . . . . . . . . . Slashing Weapon 6 | . . . . . . . . 3 . 1 . . . 1 1 . . . . . . . Piercing Weapon 4 | . . . . . . . . . . . . . . . . 2 . . . . 1 1 Special Melee Weapon 1 | . . . . . . . 1 . . . . . . . . . . . . . . . Unidentified Prototypes 7 | . 1 . 1 . . . 1 3 . . . . . . . 1 . . . . . . Corrupted Parts 1 | . . . . . . . . . . . . . . . . . 1 . . . . . System Corruption 2 | . . . . . . . . . . . . . . . . . 2 . . . . . Parts Lost 25 | . 1 . 3 4 . 8 2 2 . . . . . . . . . . . . 1 4 Power 3 | . . . 1 . . . . 1 . . . . . . . . . . . . . 1 Propulsion 7 | . . . . 2 . 2 1 . . . . . . . . . . . . . . 2 Utility 9 | . . . 2 2 . 2 1 . . . . . . . . . . . . . 1 1 Weapon 6 | . 1 . . . . 4 . 1 . . . . . . . . . . . . . . Highest Loss Streak 4 | . 1 . 2 2 . 4 1 2 . . . . . . . . . . . . 1 4 Average Slot Usage (%) 94 | . 93 100 95 96 100 96 99 94 90 86 91 94 94 92 93 90 93 86 84 84 83 77 Engine 8 | . 14 14 10 11 11 11 9 6 9 6 2 . . . . . . . . . . . Core 1 | . . . . . . . . 2 . . 2 5 5 5 5 5 5 5 5 5 5 4 Treads 6 | . 23 28 4 . . . 13 1 . . . . . . . . . . . . . . Leg 10 | . 4 . 17 21 22 22 13 . . . . . . . . . . . . . . . Hover 8 | . . . . . . . . 25 27 25 23 23 23 23 23 23 22 23 21 21 21 20 Device 7 | . . . . . . 8 12 15 18 20 24 29 23 23 19 11 5 8 10 6 5 5 Storage 9 | . 16 14 11 11 11 11 9 9 9 6 5 5 5 5 5 5 5 5 5 5 5 5 Processor 7 | . . . . 7 11 11 14 9 9 6 5 5 5 5 8 11 11 10 10 10 10 10 Hackware 4 | . . . . . . . . 8 9 7 13 11 16 17 17 17 17 15 15 19 21 20 Protection 11 | . 5 14 29 23 22 9 8 2 . . . . . . . 5 11 6 5 5 4 . Energy Gun 1 | . 1 . . . . 12 3 . . . . . . . . . . . . . . . Ballistic Gun 12 | . 26 28 21 22 13 8 14 5 . . . . . . . . . . . . . . Slashing Weapon 1 | . . . . . . . . 6 9 11 11 11 11 7 5 . . . . . . . Piercing Weapon 1 | . . . . . . . . . . . . . . . . 8 11 10 10 10 10 9 Naked Turns . | . . . . . . . . . . . . . . . . . . . . . . . Heaviest Build 54 | 13 34 34 54 50 42 39 43 43 23 26 31 31 31 30 30 34 33 33 32 32 41 39 Greatest Support 64 | 20 40 40 40 30 30 30 60 60 24 32 32 32 44 44 44 44 44 64 64 64 64 64 Greatest Overweight (x) 2 | . . . 2 1 1 1 2 2 . . . . . . . . 1 . . . . . Average Overweight (x) . | . . . . 1 1 1 . . . . . . . . . . . . . . . . Largest Inventory Capacity 25 | 8 25 15 15 15 15 15 15 15 10 10 10 10 10 10 10 10 10 10 10 10 15 15 Average Capacity 13 | 8 13 15 15 15 15 15 15 10 10 10 10 10 10 10 10 10 10 10 10 10 13 15 Most Carried 15 | 6 15 15 15 15 15 15 15 15 10 10 10 10 10 10 10 10 10 10 10 10 13 14 Average Carried 12 | 6 10 14 14 14 15 14 14 10 10 9 10 10 9 9 9 9 10 9 9 9 12 13 Final Capacity 15 | 8 15 15 15 15 15 15 15 10 10 10 10 10 10 10 10 10 10 10 10 10 15 15 Final Carried 15 | 6 15 15 15 15 15 15 15 10 10 10 10 10 10 9 10 10 10 10 9 10 13 14 Class Distribution -------------------- 45% | Mutant 31% | Scavenger-Mutant 8% | Hacker-Scout 7% | Hacker-Mutant 4% | Hacker-Ninja Dominant Class ---------------- Mutant | -10/Materials Mutant | -10/Mines Mutant | -9/Materials Scavenger-Mutant | -9/Mines Mutant | -9/Exiles Scavenger-Mutant | -8/Mines Scavenger-Mutant | -8/Materials Mutant | -8/Storage Mutant | -8/Recycling Commander-Mutant | -6/Factory Hacker-Mutant | -5/Factory Hacker-Mutant | -5/Waste Hacker-Mutant | -5/Factory Hacker-Mutant | -5/Upper Caves Hacker-Ninja | -5/Upper Caves Hacker-Scout | -5/Warlord Hacker-Scout | -4/Proximity Caves Hacker-Ninja | -4/Factory Hacker-Ninja | -4/Waste Hacker-Scout | -4/Factory Hacker-Scout | -4/Upper Caves Hacker-Scout | -4/Upper Caves Resources | -11 -10 -10 -9 -9 -9 -8 -8 -8 -8 -6 -5 -5 -5 -5 -5 -5 -4 -4 -4 -4 -4 -4 ----------- Run | Scr Mat Min Mat Min Exi Min Mat Sto Rec Fac Fac Was Fac Upp Upp War Pro Fac Was Fac Upp Upp Matter Collected 3661 | 219 271 97 766 294 . 222 806 507 105 . . . 115 96 86 . . . . 16 61 . Remotely . | . . . . . . . . . . . . . . . . . . . . . . . Salvage Created 5417 | 93 305 30 1070 317 . 688 1537 622 96 . . . 265 34 68 . . 22 . 16 89 165 Parts 314 | 1 15 4 73 19 . 32 92 43 2 . . . 7 3 8 . . 2 . . 5 8 Haulers Intercepted 4 | . 1 . 1 . . . . 1 . . . . 1 . . . . . . . . . Recyclers Shooed 2 | . . . . . . 1 1 . . . . . . . . . . . . . . . Parts Field Recycled . | . . . . . . . . . . . . . . . . . . . . . . . Retrieved Matter . | . . . . . . . . . . . . . . . . . . . . . . . Parts Self-Destructed 45 | . . . . . . . . . . . . . . 2 19 18 . . . . 2 4 Prevented 28 | . . . . . . . . . . . . . . . 1 16 4 . . . 4 3 Kills | -11 -10 -10 -9 -9 -9 -8 -8 -8 -8 -6 -5 -5 -5 -5 -5 -5 -4 -4 -4 -4 -4 -4 ------- Run | Scr Mat Min Mat Min Exi Min Mat Sto Rec Fac Fac Was Fac Upp Upp War Pro Fac Was Fac Upp Upp Combat Hostiles Destroyed 122 | . 10 2 23 12 . 13 32 13 . . . . . 2 4 . . 1 . . 4 6 Melee 5 | . . . . . . . . 2 . . . . . . 1 . . 1 . . 1 . Guns 92 | . 10 2 23 12 . 9 29 7 . . . . . . . . . . . . . . AOE 24 | . . . . . . 4 3 4 . . . . . 2 3 . . . . . 3 5 Classes Destroyed 12 | 1 3 . 3 2 . 2 . 1 . . . . . . . . . . . . . . Worker 2 | . . . . . . . . 1 . . . . 1 . . . . . . . . . Tunneler 2 | . . . . . . 1 . . . . . . . . . . . . . 1 . . Hauler 4 | . 1 . 1 . . . . 1 . . . . 1 . . . . . . . . . Recycler 5 | 1 . . . . . 1 1 . 1 . . . 1 . . . . . . . . . Watcher 7 | . . . 5 . . . 1 1 . . . . . . . . . . . . . . Swarmer 44 | . 5 2 4 5 . . 7 4 . . . . . 2 4 . . 1 . . 4 6 Grunt 50 | . 5 . 12 4 . 12 14 3 . . . . . . . . . . . . . . Brawler 2 | . . . . 1 . . 1 . . . . . . . . . . . . . . . Duelist 2 | . . . 1 . . 1 . . . . . . . . . . . . . . . . Sentry 20 | . . . 6 . . . 9 5 . . . . . . . . . . . . . . Demolisher 2 | . . . . 2 . . . . . . . . . . . . . . . . . . Hunter 4 | . . . . . . 2 1 1 . . . . . . . . . . . . . . Best Kill Streak 5 | 1 4 2 4 4 . 3 5 5 1 . . . 1 2 4 . . 1 . 1 4 4 Combat Bots Only 4 | . 3 2 4 4 . 3 4 4 . . . . . 2 4 . . 1 . . 4 4 Max Kills in Single Turn 3 | 1 1 1 2 1 . 2 2 2 1 . . . 1 2 3 . . 1 . 1 3 2 Gunslinging . | . . . . . . . . . . . . . . . . . . . . . . . Exploded 3 | . . . . . . 2 1 2 . . . . . 2 3 . . . . . 3 2 Melee 1 | . . . . . . . . 1 . . . . . . 1 . . 1 . . 1 . Uniques/NPCs Destroyed . | . . . . . . . . . . . . . . . . . . . . . . . Combat | -11 -10 -10 -9 -9 -9 -8 -8 -8 -8 -6 -5 -5 -5 -5 -5 -5 -4 -4 -4 -4 -4 -4 -------- Run | Scr Mat Min Mat Min Exi Min Mat Sto Rec Fac Fac Was Fac Upp Upp War Pro Fac Was Fac Upp Upp Damage Taken 6562 | . 509 65 1337 651 . 740 1088 817 . 76 . . 18 98 143 . 192 59 . 175 47 547 Core 831 | . 101 14 102 61 . 77 127 103 . 19 . . . 13 16 . 44 36 . . . 118 Absorbed by Shields . | . . . . . . . . . . . . . . . . . . . . . . . Core Remaining (%) 73 | 100 . 54 . . . 40 . . 58 97 . . . . . . 92 . . . . . Volleys Fired 341 | 3 46 6 82 34 . 36 97 29 . . . . . 1 1 . . . . . 1 5 Largest 2 | 2 2 2 2 2 . 2 2 2 . . . . . 1 1 . . . . . 1 1 Hottest 112 | 60 60 46 79 46 . 112 83 53 . . . . . 30 30 . . . . . 36 36 Shots Fired 653 | 6 91 12 157 68 . 67 189 54 . . . . . 2 1 . . . . . 1 5 Gun 630 | 6 91 12 157 68 . 62 184 50 . . . . . . . . . . . . . . Cannon . | . . . . . . . . . . . . . . . . . . . . . . . Launcher 23 | . . . . . . 5 5 4 . . . . . 2 1 . . . . . 1 5 Special . | . . . . . . . . . . . . . . . . . . . . . . . Kinetic 524 | 3 85 12 150 68 . 15 141 50 . . . . . . . . . . . . . . Thermal 63 | 3 6 . 7 . . 47 . . . . . . . . . . . . . . . . Explosive 15 | . . . . . . 5 5 2 . . . . . 2 1 . . . . . . . Electromagnetic 51 | . . . . . . . 43 2 . . . . . . . . . . . . 1 5 Robot Hit Streak 25 | 2 11 2 14 10 . 21 25 20 . . . . . . 1 . . . . . . 4 Robot Miss Streak 7 | 1 7 6 6 5 . 2 4 1 . . . . . 1 . . . . . . . 1 Penetration Max 1 | . . . . . . . 1 . . . . . . . . . . . . . . . Secondary Targets 7 | . . . 5 2 . . . . . . . . . . . . . . . . . . Max Gunslinging Chain 1 | . . . 1 1 . . . . . . . . . . . . . . . . . . Shots Hit Robots 464 | 4 48 4 105 38 . 49 140 50 2 . . . 10 . 2 . . 6 . 1 1 4 Core Hits 227 | 2 19 2 45 19 . 33 62 21 1 . . . 3 3 4 . . 1 . . 4 8 Critical Kills 1 | . 1 . . . . . . . . . . . . . . . . . . . . . Critical Parts Destroyed 1 | . 1 . . . . . . . . . . . . . . . . . . . . . Critical Strikes 6 | . 2 . . . . 2 1 . . . . . 1 . . . . . . . . . Burn 2 | . . . . . . 2 . . . . . . . . . . . . . . . . Destroy 3 | . 2 . . . . . 1 . . . . . . . . . . . . . . . Sever 1 | . . . . . . . . . . . . . 1 . . . . . . . . . Melee Attacks 100 | . . . . . . . . 25 28 1 . . 19 2 1 . . 13 . 8 1 2 Impact . | . . . . . . . . . . . . . . . . . . . . . . . Slashing 76 | . . . . . . . . 25 28 1 . . 19 2 1 . . . . . . . Piercing . | . . . . . . . . . . . . . . . . . . . . . . . Entropic 24 | . . . . . . . . . . . . . . . . . . 13 . 8 1 2 Sneak Attacks 7 | . . . . . . . . 1 1 . . . 3 . . . . 1 . 1 . . Combat Hostiles . | . . . . . . . . . . . . . . . . . . . . . . . Follow-up Attacks 4 | . . . . . . . . . . . . . 2 . . . . 2 . . . . Damage Inflicted 11193 | 52 518 66 1754 601 . 1454 2701 1465 136 . . . 555 70 230 . . 774 . 211 301 305 Guns 6625 | 52 518 66 1754 591 . 734 2371 539 . . . . . . . . . . . . . . Cannons . | . . . . . . . . . . . . . . . . . . . . . . . Explosions 2185 | . . . . . . 720 330 362 . . . . . 70 196 . . . . . 202 305 Melee 2373 | . . . . . . . . 564 136 . . . 555 . 34 . . 774 . 211 99 . Ramming 10 | . . . . 10 . . . . . . . . . . . . . . . . . . Kinetic 5500 | 28 488 66 1651 591 . 145 1992 539 . . . . . . . . . . . . . . Thermal 923 | 24 30 . 103 . . 589 41 . . . . . . . . . . . . . 136 . Explosive 1448 | . . . . . . 720 289 173 . . . . . 70 196 . . . . . . . Electromagnetic 939 | . . . . . . . 379 189 . . . . . . . . . . . . 66 305 Impact . | . . . . . . . . . . . . . . . . . . . . . . . Slashing 1289 | . . . . . . . . 564 136 . . . 555 . 34 . . . . . . . Piercing . | . . . . . . . . . . . . . . . . . . . . . . . Entropic 1084 | . . . . . . . . . . . . . . . . . . 774 . 211 99 . Highest Corruption 9 | . . . . . . . . . . . . 5 9 9 9 9 2 . . . . 4 Average Corruption 7 | . . . . . . . . . . . . 5 7 9 9 9 2 . . . . 2 Corruption Purged . | . . . . . . . . . . . . . . . . . . . . . . . Effects 40 | . . . . . . . . . . . . 1 12 13 11 1 . . . . . 2 Message Errors 13 | . . . . . . . . . . . . . 4 2 6 . . . . . . 1 Matter Fused 11 | . . . . . . . . . . . . . 6 3 1 1 . . . . . . Heat Flow Errors 4 | . . . . . . . . . . . . . . 2 1 . . . . . . 1 Energy Discharges 5 | . . . . . . . . . . . . 1 1 3 . . . . . . . . Data Loss (minor) 4 | . . . . . . . . . . . . . . 1 3 . . . . . . . Data Loss (major) 2 | . . . . . . . . . . . . . 1 1 . . . . . . . . Misfires 1 | . . . . . . . . . . . . . . 1 . . . . . . . . Overload Shots . | . . . . . . . . . . . . . . . . . . . . . . . Overflow Damage 867 | . . . . . . . . 54 67 . . . 151 . . . . 376 . 181 22 16 Projectiles . | . . . . . . . . . . . . . . . . . . . . . . . Explosions 43 | . . . . . . . . 5 . . . . . . . . . . . . 22 16 Melee 824 | . . . . . . . . 49 67 . . . 151 . . . . 376 . 181 . . Knockbacks . | . . . . . . . . . . . . . . . . . . . . . . . Impact . | . . . . . . . . . . . . . . . . . . . . . . . Kinetic . | . . . . . . . . . . . . . . . . . . . . . . . Secondary . | . . . . . . . . . . . . . . . . . . . . . . . Self-Inflicted Damage 266 | . . . . . . 95 . . . . . . . 9 49 . . . . . . 113 Shots 10 | . . . . . . 3 . . . . . . . 1 1 . . . . . . 5 Rammed 1 | . . 1 . . . . . . . . . . . . . . . . . . . . Targets Rammed 4 | . . 1 . 2 . . 1 . . . . . . . . . . . . . . . Kicked 3 | . . . . 2 . . 1 . . . . . . . . . . . . . . . Crushed . | . . . . . . . . . . . . . . . . . . . . . . . Highest Temperature 339 | . 40 26 339 139 . 147 33 188 . . . . . 183 153 . . . . . . 189 Average Temperature 54 | . 12 13 76 43 . 54 6 56 . . . . . 85 85 . . . . . . 105 Received Heat Transfer 1929 | . 153 . 591 72 . 261 378 324 . 9 . . 9 18 . . 18 9 . . 9 78 Effects 3 | . . . 3 . . . . . . . . . . . . . . . . . . . Energy Bleed 1 | . . . 1 . . . . . . . . . . . . . . . . . . . Interference 2 | . . . 2 . . . . . . . . . . . . . . . . . . . Siege Activations . | . . . . . . . . . . . . . . . . . . . . . . . Robots Corrupted 1 | . . . . . . . . . . . . . . . . . . . . . . 1 Combat Hostiles 1 | . . . . . . . . . . . . . . . . . . . . . . 1 Parts Fried 4 | . . . . . . . 1 2 . . . . . . . . . . . . . 1 Impact Corruptions . | . . . . . . . . . . . . . . . . . . . . . . . Robots Melted . | . . . . . . . . . . . . . . . . . . . . . . . Combat Hostiles . | . . . . . . . . . . . . . . . . . . . . . . . Parts Melted 6 | . . . 1 . . 5 . . . . . . . . . . . . . . . . Heat Transferred 1990 | 50 75 . 222 . . 1443 50 . . . . . . . . . . . . . 150 . Parts Sabotaged . | . . . . . . . . . . . . . . . . . . . . . . . Parts Stolen . | . . . . . . . . . . . . . . . . . . . . . . . Parts Stripped . | . . . . . . . . . . . . . . . . . . . . . . . Power Chain Reactions 2 | . . . . . . . 1 . . . . . . . . . . . . . 1 . Missiles Intercepted . | . . . . . . . . . . . . . . . . . . . . . . . Alert | -11 -10 -10 -9 -9 -9 -8 -8 -8 -8 -6 -5 -5 -5 -5 -5 -5 -4 -4 -4 -4 -4 -4 ------- Run | Scr Mat Min Mat Min Exi Min Mat Sto Rec Fac Fac Was Fac Upp Upp War Pro Fac Was Fac Upp Upp Peak Influence 943 | 5 250 50 272 221 . 119 320 361 254 943 477 181 299 . . . . 239 73 115 . . Initial 918 | . 3 . . 81 . . 5 72 96 918 462 166 126 . . . . 37 13 47 . . Average 111 | 3 62 8 99 44 . 53 128 216 90 907 462 167 173 . . . . 138 51 69 . . Maximum Alert Level 3 | . 1 . 1 1 . . 1 1 1 3 2 . 1 . . . . 1 . . . . Low Security (%) 82 | 100 93 100 85 95 . 100 81 37 92 . . 100 74 . . . . 78 100 100 . . Level 1 14 | . 6 . 14 4 . . 18 62 7 . . . 25 . . . . 21 . . . . Level 2 . | . . . . . . . . . . . 100 . . . . . . . . . . . Level 3 1 | . . . . . . . . . . 100 . . . . . . . . . . . . Level 4 . | . . . . . . . . . . . . . . . . . . . . . . . Level 5 . | . . . . . . . . . . . . . . . . . . . . . . . High Security . | . . . . . . . . . . . . . . . . . . . . . . . Max Security . | . . . . . . . . . . . . . . . . . . . . . . . Squads Dispatched 17 | . 1 . 2 . . . 3 1 . 2 . . 5 . . . . . . 2 . 1 Investigation 4 | . . . 1 . . . 1 . . . . . 2 . . . . . . . . . Extermination . | . . . . . . . . . . . . . . . . . . . . . . . Reinforcement 12 | . 1 . 1 . . . 2 1 . 2 . . 3 . . . . . . 2 . . Assault 1 | . . . . . . . . . . . . . . . . . . . . . . 1 Garrison . | . . . . . . . . . . . . . . . . . . . . . . . Intercept . | . . . . . . . . . . . . . . . . . . . . . . . Construction Impeded 1 | . . . . . . . 1 . . . . . . . . . . . . . . . Haulers Reinforced 1 | . . . . . . . . . . 1 . . . . . . . . . . . . Active Scanning Responses . | . . . . . . . . . . . . . . . . . . . . . . . Cargo Convoy Interrupts . | . . . . . . . . . . . . . . . . . . . . . . . Stealth | -11 -10 -10 -9 -9 -9 -8 -8 -8 -8 -6 -5 -5 -5 -5 -5 -5 -4 -4 -4 -4 -4 -4 --------- Run | Scr Mat Min Mat Min Exi Min Mat Sto Rec Fac Fac Was Fac Upp Upp War Pro Fac Was Fac Upp Upp Distress Signals 17 | . . . . 1 . . 10 5 . . . . 1 . . . . . . . . . Communications Jammed 2 | . . . . . . . 2 . . . . . . . . . . . . . . . Distress Signals 2 | . . . . . . . 2 . . . . . . . . . . . . . . . Times Spotted 263 | . 18 2 31 19 . 15 56 22 19 4 . 6 11 6 5 . 4 10 5 6 7 17 Peak Tracking Total 9 | . 5 2 5 5 . 3 6 5 6 3 . 6 4 7 5 . 3 6 5 2 4 9 Tactical Retreats 24 | . . . . 2 . 2 6 3 . . . . 2 2 . . 3 3 . 1 . . Traps | -11 -10 -10 -9 -9 -9 -8 -8 -8 -8 -6 -5 -5 -5 -5 -5 -5 -4 -4 -4 -4 -4 -4 ------- Run | Scr Mat Min Mat Min Exi Min Mat Sto Rec Fac Fac Was Fac Upp Upp War Pro Fac Was Fac Upp Upp Traps Triggered 11 | . . . 1 . . . 1 . . 1 1 . 4 . . . . 2 . 1 . . Indirectly . | . . . . . . . . . . . . . . . . . . . . . . . Trap Hack Attempts . | . . . . . . . . . . . . . . . . . . . . . . . Triggered . | . . . . . . . . . . . . . . . . . . . . . . . Disarmed . | . . . . . . . . . . . . . . . . . . . . . . . Reprogrammed 6 | . 6 . . . . . . . . . . . . . . . . . . . . . Reused . | . . . . . . . . . . . . . . . . . . . . . . . Traps Extracted . | . . . . . . . . . . . . . . . . . . . . . . . Installed . | . . . . . . . . . . . . . . . . . . . . . . . Triggered 16 | . . . . . . . . . . . . . . . . 13 1 . . . 2 . Machines | -11 -10 -10 -9 -9 -9 -8 -8 -8 -8 -6 -5 -5 -5 -5 -5 -5 -4 -4 -4 -4 -4 -4 ---------- Run | Scr Mat Min Mat Min Exi Min Mat Sto Rec Fac Fac Was Fac Upp Upp War Pro Fac Was Fac Upp Upp Machines Disabled 3 | . . . . . . . 1 1 1 . . . . . . . . . . . . . Max in Single Turn 1 | . . . . . . . 1 1 . . . . . . . . . . . . . . Garrison Access 5 | . . . . . . . . 1 . . 1 . 1 . . . . 1 . 1 . . Machines Sabotaged . | . . . . . . . . . . . . . . . . . . . . . . . Garrisons Compromised . | . . . . . . . . . . . . . . . . . . . . . . . Overloaded Fab Kills . | . . . . . . . . . . . . . . . . . . . . . . . Hacking | -11 -10 -10 -9 -9 -9 -8 -8 -8 -8 -6 -5 -5 -5 -5 -5 -5 -4 -4 -4 -4 -4 -4 --------- Run | Scr Mat Min Mat Min Exi Min Mat Sto Rec Fac Fac Was Fac Upp Upp War Pro Fac Was Fac Upp Upp Machines Accessed 81 | . 6 1 9 . 1 . 12 8 11 3 5 . 10 . 1 4 . 4 . 6 . . Terminals 51 | . 5 . 8 . . . 8 6 6 3 3 . 6 . . . . 2 . 4 . . Fabricators 3 | . . . . . . . . . . . . . 2 . . . . 1 . . . . Repair Stations 4 | . 1 . 1 . . . 2 . . . . . . . . . . . . . . . Recycling Units 7 | . . . . . . . 1 1 5 . . . . . . . . . . . . . Scanalyzers 4 | . . . . . . . 1 . . . 1 . 1 . . . . . . 1 . . Garrison Access 5 | . . . . . . . . 1 . . 1 . 1 . . . . 1 . 1 . . Total Hacks 257 | . 22 1 28 . 1 . 35 20 39 4 21 . 33 . 5 9 . 13 . 26 . . Successful 160 | . 12 1 20 . 1 . 27 13 19 1 11 . 16 . 5 9 . 9 . 16 . . Failed 96 | . 10 . 7 . . . 8 7 20 3 10 . 17 . . . . 4 . 10 . . Catastrophic 11 | . . . 1 . . . 1 . 2 1 2 . 4 . . . . . . . . . Database Lockouts 1 | . . . 1 . . . . . . . . . . . . . . . . . . . Manual 111 | . 12 . 14 . . . 17 9 20 1 14 . 10 . . . . 4 . 10 . . Terminals 184 | . 18 . 24 . . . 25 18 31 4 14 . 26 . . . . 7 . 17 . . Fabricators 6 | . . . . . . . . . . . . . 3 . . . . 3 . . . . Repair Stations 14 | . 4 . 4 . . . 6 . . . . . . . . . . . . . . . Recycling Units 10 | . . . . . . . 1 1 8 . . . . . . . . . . . . . Scanalyzers 19 | . . . . . . . 3 . . . 5 . 3 . . . . . . 8 . . Garrison Access 8 | . . . . . . . . 1 . . 2 . 1 . . . . 3 . 1 . . Terminal Hacks 82 | . 5 1 10 . 1 . 12 7 13 1 3 . 8 . 5 9 . 2 . 5 . . Record 9 | . . . 1 . 1 . . . . . . . . . 5 2 . . . . . . Part Schematic 7 | . . . . . . . . 1 4 . 1 . 1 . . . . . . . . . Robot Analysis 7 | . . . 2 . . . 3 . . . 2 . . . . . . . . . . . Prototype ID Bank 12 | . 1 . 1 . . . 2 . 2 . . . 1 . . 5 . . . . . . Open Door 5 | . . 1 . . . . . 2 . . . . . . . 2 . . . . . . Open DSF 3 | . . . . . . . . . . 1 . . 1 . . . . . . 1 . . Level Access Points 1 | . . . . . . . . . . . . . . . . . . . . 1 . . Branch Access Points 2 | . . . . . . . . . . . . . 1 . . . . . . 1 . . Garrison Index 1 | . . . . . . . . . . . . . . . . . . 1 . . . . Alert Level 6 | . 1 . 1 . . . 1 . 3 . . . . . . . . . . . . . Unreport Threat 8 | . . . 2 . . . 3 . 3 . . . . . . . . . . . . . Locate Traps 12 | . 2 . 1 . . . 2 3 . . . . 2 . . . . 1 . 1 . . Reprogram Traps 1 | . 1 . . . . . . . . . . . . . . . . . . . . . Recall Reinforcements 2 | . . . 1 . . . . . . . . . 1 . . . . . . . . . Hauler Manifests 3 | . . . 1 . . . 1 . 1 . . . . . . . . . . . . . Zone Layout 3 | . . . . . . . . 1 . . . . 1 . . . . . . 1 . . Fabricator Hacks 6 | . . . . . . . . . . . . . 3 . . . . 3 . . . . Network Status 2 | . . . . . . . . . . . . . 1 . . . . 1 . . . . Load Schematic 2 | . . . . . . . . . . . . . 1 . . . . 1 . . . . Build 2 | . . . . . . . . . . . . . 1 . . . . 1 . . . . Repair Station Hacks 14 | . 4 . 4 . . . 6 . . . . . . . . . . . . . . . Scan Component 7 | . 2 . 2 . . . 3 . . . . . . . . . . . . . . . Repair 7 | . 2 . 2 . . . 3 . . . . . . . . . . . . . . . Recycling Unit Hacks 3 | . . . . . . . 1 1 1 . . . . . . . . . . . . . Report Inventory 3 | . . . . . . . 1 1 1 . . . . . . . . . . . . . Scanalyzer 16 | . . . . . . . 3 . . . 5 . 1 . . . . . . 7 . . Insert Component 6 | . . . . . . . 1 . . . 1 . 1 . . . . . . 3 . . Analyze 10 | . . . . . . . 2 . . . 4 . . . . . . . . 4 . . Garrison Access Hacks 5 | . . . . . . . . 1 . . 1 . 1 . . . . 1 . 1 . . Seal Access 5 | . . . . . . . . 1 . . 1 . 1 . . . . 1 . 1 . . Unauthorized Hacks 34 | . 3 . 6 . . . 5 4 5 . 2 . 3 . . . . 3 . 3 . . Terminals 29 | . 3 . 6 . . . 5 4 . . 2 . 3 . . . . 3 . 3 . . Track 8 | . 1 . 2 . . . 1 1 . . . . 1 . . . . 1 . 1 . . Assimilate 1 | . . . . . . . . . . . . . . . . . . . . 1 . . Botnet 20 | . 2 . 4 . . . 4 3 . . 2 . 2 . . . . 2 . 1 . . Fabricators . | . . . . . . . . . . . . . . . . . . . . . . . Repair Stations . | . . . . . . . . . . . . . . . . . . . . . . . Recycling Units 5 | . . . . . . . . . 5 . . . . . . . . . . . . . Tunnel 5 | . . . . . . . . . 5 . . . . . . . . . . . . . Scanalyzers . | . . . . . . . . . . . . . . . . . . . . . . . Garrison Access . | . . . . . . . . . . . . . . . . . . . . . . . Data Cores Recovered . | . . . . . . . . . . . . . . . . . . . . . . . Used . | . . . . . . . . . . . . . . . . . . . . . . . Hacking Detections 55 | . 5 . 8 . . . 11 6 7 2 4 . 6 . . . . 3 . 3 . . Full Trace Events 3 | . . . . . . . 1 . 1 . . . 1 . . . . . . . . . Feedback Events 1 | . . . . . . . . . . . . . 1 . . . . . . . . . Corruption 1 | . . . . . . . . . . . . . 1 . . . . . . . . . Feedback Blocked . | . . . . . . . . . . . . . . . . . . . . . . . Robot Schematics Acquired . | . . . . . . . . . . . . . . . . . . . . . . . Robots Built . | . . . . . . . . . . . . . . . . . . . . . . . Authchips . | . . . . . . . . . . . . . . . . . . . . . . . Time . | . . . . . . . . . . . . . . . . . . . . . . . Total Robot Build Rating . | . . . . . . . . . . . . . . . . . . . . . . . Part Schematics Acquired 10 | . . . . . . . . 1 4 . 1 . 1 . . . . . . 3 . . Parts Built 4 | . . . . . . . . . . . . . 2 . . . . 2 . . . . Authchips . | . . . . . . . . . . . . . . . . . . . . . . . Time 137 | . . . . . . . . . . . . . 53 . . . . 84 . . . . Total Part Build Rating 20 | . . . . . . . . . . . . . 12 . . . . 8 . . . . Parts Repaired 7 | . 2 . 2 . . . 3 . . . . . . . . . . . . . . . Time 288 | . 52 . 58 . . . 178 . . . . . . . . . . . . . . . Parts Recycled . | . . . . . . . . . . . . . . . . . . . . . . . Recycled Matter . | . . . . . . . . . . . . . . . . . . . . . . . Retrieved Matter . | . . . . . . . . . . . . . . . . . . . . . . . Retrieved Components . | . . . . . . . . . . . . . . . . . . . . . . . Parts Scanalyzed 5 | . . . . . . . 1 . . . 1 . 1 . . . . . . 2 . . Part Schematics Acquired 3 | . . . . . . . . . . . . . . . . . . . . 3 . . Parts Damaged . | . . . . . . . . . . . . . . . . . . . . . . . Bothacking | -11 -10 -10 -9 -9 -9 -8 -8 -8 -8 -6 -5 -5 -5 -5 -5 -5 -4 -4 -4 -4 -4 -4 ------------ Run | Scr Mat Min Mat Min Exi Min Mat Sto Rec Fac Fac Was Fac Upp Upp War Pro Fac Was Fac Upp Upp Used RIF Installer . | . . . . . . . . . . . . . . . . . . . . . . . Robots Hacked . | . . . . . . . . . . . . . . . . . . . . . . . Non-combat . | . . . . . . . . . . . . . . . . . . . . . . . Combat . | . . . . . . . . . . . . . . . . . . . . . . . Robot Hacks Applied . | . . . . . . . . . . . . . . . . . . . . . . . Relay Couplers Released . | . . . . . . . . . . . . . . . . . . . . . . . Robots Rewired 11 | . . . . . . . . . 11 . . . . . . . . . . . . . Allies Hacked . | . . . . . . . . . . . . . . . . . . . . . . . Hacks Repelled . | . . . . . . . . . . . . . . . . . . . . . . . Allies | -11 -10 -10 -9 -9 -9 -8 -8 -8 -8 -6 -5 -5 -5 -5 -5 -5 -4 -4 -4 -4 -4 -4 -------- Run | Scr Mat Min Mat Min Exi Min Mat Sto Rec Fac Fac Was Fac Upp Upp War Pro Fac Was Fac Upp Upp Total Allies 17 | . . . . 4 . . . . 11 . . 1 . . . . . . 1 . . . Largest Group 10 | . . . . 3 3 3 . . 10 9 . 1 . . . . . . 1 . . . Highest-Rated Group 163 | . . . . 40 40 40 . . 163 148 . 31 . . . . . . 46 . . . Highest-Rated Ally 46 | . . . . 31 16 16 . . 34 34 . 31 . . . . . . 46 . . . Total Orders . | . . . . . . . . . . . . . . . . . . . . . . . Ally Attacks 123 | . . . . 17 . 20 . . 57 18 . 6 . . . . . . 5 . . . Total Damage 1746 | . . . . 207 . 245 . . 409 678 . 105 . . . . . . 102 . . . Kills 16 | . . . . 4 . . . . 7 5 . . . . . . . . . . . . Allies Corrupted . | . . . . . . . . . . . . . . . . . . . . . . . Allies Melted 1 | . . . . . . . . . . . . . . . . 1 . . . . . . Intel | -11 -10 -10 -9 -9 -9 -8 -8 -8 -8 -6 -5 -5 -5 -5 -5 -5 -4 -4 -4 -4 -4 -4 ------- Run | Scr Mat Min Mat Min Exi Min Mat Sto Rec Fac Fac Was Fac Upp Upp War Pro Fac Was Fac Upp Upp Robot Analysis Total 7 | . . . 2 . . . 3 . . . 2 . . . . . . . . . . . Derelict Logs Recovered 8 | . . 2 . . . . . . . . . . . 2 1 . 2 . . . 1 . Drone Launches . | . . . . . . . . . . . . . . . . . . . . . . . Drone Recoveries . | . . . . . . . . . . . . . . . . . . . . . . . Exploration | -11 -10 -10 -9 -9 -9 -8 -8 -8 -8 -6 -5 -5 -5 -5 -5 -5 -4 -4 -4 -4 -4 -4 ------------- Run | Scr Mat Min Mat Min Exi Min Mat Sto Rec Fac Fac Was Fac Upp Upp War Pro Fac Was Fac Upp Upp Turns Passed 18199 | 39 1249 1009 2063 2282 973 1453 2943 1563 750 209 147 86 464 484 295 375 249 404 57 574 209 322 Spaces Moved 13296 | 24 570 604 680 888 501 684 1189 872 720 451 234 207 824 575 637 865 424 787 104 898 395 163 Core . | . . . . . . . . . . . . . . . . . . . . . . . Treads 2028 | . 534 604 165 . . . 672 53 . . . . . . . . . . . . . . Legs 3165 | 24 36 . 515 888 501 684 517 . . . . . . . . . . . . . . . Wheels . | . . . . . . . . . . . . . . . . . . . . . . . Hover 8103 | . . . . . . . . 819 720 451 234 207 824 575 637 865 424 787 104 898 395 163 Flight . | . . . . . . . . . . . . . . . . . . . . . . . Fastest Speed 34 | 120 120 160 160 190 190 190 120 42 42 38 38 38 34 40 40 40 40 40 50 50 50 50 Average Speed 93 | 120 157 160 188 190 190 190 147 60 42 38 38 38 38 40 40 40 40 43 50 50 50 50 Slowest Speed 260 | 120 160 160 260 190 190 190 260 240 42 42 38 38 40 40 40 40 106 50 50 50 50 55 Overloaded Moves . | . . . . . . . . . . . . . . . . . . . . . . . Propulsion Burnouts . | . . . . . . . . . . . . . . . . . . . . . . . Robots Hopped . | . . . . . . . . . . . . . . . . . . . . . . . Cave-ins Triggered . | . . . . . . . . . . . . . . . . . . . . . . . Exploration Rate (%) 64 | 3 87 98 80 98 85 100 84 81 96 9 8 97 23 70 71 94 72 29 81 26 70 16 Regions Visited 22 Branch Regions 12 Pre-discovered Areas 8 | . . . . 1 1 . . . 5 . . . . . . . 1 . . . . . Known Exits Taken 13 | . . . 1 . 1 . 1 1 1 1 . . 1 1 1 1 1 . . 1 1 . Unknown Exits Taken 5 | 1 1 1 . 1 . 1 . . . . . . . . . . . . . . . . Scrap Searched 12 | . . 1 . 1 . 2 . . . . . . . 1 4 . 1 . . . 2 . Spaces Dug 33 | . . . . . . . 7 10 3 . . . 5 2 . . . 2 . 4 . . Terrain Destroyed 164 | . . . . . . 47 36 31 3 . . . 5 21 9 . . 2 . 4 6 . Melee 26 | . . . . . . . . 10 3 . . . 5 2 . . . 2 . 4 . . Projectile 2 | . . . . . . . 2 . . . . . . . . . . . . . . . AOE 135 | . . . . . . 47 34 20 . . . . . 19 9 . . . . . 6 . Terrain Rammed . | . . . . . . . . . . . . . . . . . . . . . . . Walls Destroyed . | . . . . . . . . . . . . . . . . . . . . . . . Machines Disabled . | . . . . . . . . . . . . . . . . . . . . . . . Actions | -11 -10 -10 -9 -9 -9 -8 -8 -8 -8 -6 -5 -5 -5 -5 -5 -5 -4 -4 -4 -4 -4 -4 --------- Run | Scr Mat Min Mat Min Exi Min Mat Sto Rec Fac Fac Was Fac Upp Upp War Pro Fac Was Fac Upp Upp Total 18312 | 27 843 639 1321 1422 522 771 2200 1834 1139 482 292 214 948 826 673 895 500 841 109 1016 403 395 Wait 4041 | . 190 23 508 479 21 22 847 851 206 25 50 6 88 242 28 18 73 30 3 110 . 221 Move 13276 | 23 569 603 679 887 500 683 1188 871 719 450 234 206 823 574 636 864 423 787 103 897 394 163 Hop . | . . . . . . . . . . . . . . . . . . . . . . . Pick Up 69 | . 12 3 7 6 . 8 12 5 . 1 1 1 4 2 . 1 . 1 1 1 3 . Fast Attach 61 | . 7 . 11 1 . 4 12 6 . 4 3 . 2 . 1 4 2 3 . 1 . . Attach 26 | . 3 . 2 3 . 6 2 5 . 1 . . 1 1 1 . . 1 . . . . Detach 21 | . 6 . . . . 2 . 4 . . 1 . 1 . 2 3 . 1 . . . 1 Swap 81 | 1 3 . 12 4 1 6 17 22 . . 1 . . 1 3 . 2 2 . . 3 3 Drop 106 | . 7 3 20 6 . 4 24 16 . . 2 1 6 3 . 5 . 5 2 1 1 . Fire 341 | 3 46 6 82 34 . 36 97 29 . . . . . 1 1 . . . . . 1 5 Melee 92 | . . . . . . . . 25 28 1 . . 15 2 1 . . 11 . 6 1 2 Ram . | . . . . . . . . . . . . . . . . . . . . . . . Kick 3 | . . . . 2 . . 1 . . . . . . . . . . . . . . . Crush 1 | . . 1 . . . . . . . . . . . . . . . . . . . . Escape Stasis 8 | . . . . . . . . . . . . . 8 . . . . . . . . . Rewire 186 | . . . . . . . . . 186 . . . . . . . . . . . . . Trap . | . . . . . . . . . . . . . . . . . . . . . . . Miscellaneous . | . . . . . . . . . . . . . . . . . . . . . . . Route ------- -11/Scrapyard -10/Materials (discovered 5 exits: *Mat x3 / *Min x2) -10/Mines (discovered 2 exits: *Mat x2) -9/Materials (discovered 3 exits: *Mat x2 / *Min) -9/Mines (discovered 4 exits: *Mat x2 / *Exi / [*Zio]) -9/Exiles (discovered 2 exits: *Min x2) -8/Mines (discovered 2 exits: *Mat x2) -8/Materials (discovered 4 exits: [*Fac x2] / *Sto x2) -8/Storage -8/Recycling -6/Factory -5/Factory -5/Waste -5/Factory (discovered 2 exits: *Upp x2) -5/Upper Caves -5/Upper Caves (discovered 2 exits: *Fac / *War) -5/Warlord -4/Proximity Caves -4/Factory (discovered 3 exits: *Res x2 / Ext) -4/Waste -4/Factory (discovered 8 exits: Res x4 / *Upp x2 / Ext x2) -4/Upper Caves -4/Upper Caves (discovered 1 exit: *Res) History --------- Turn | Location | Event 1 | -11/Scrapyard | Discovered new exit (range 3) 40 | -11/Scrapyard | Entered Materials 318 | -10/Materials | Build established: Mutant 556 | -10/Materials | Repaired Lgt. Treads 584 | -10/Materials | Repaired Lgt. Treads 629 | -10/Materials | Discovered new exit (range 4) 895 | -10/Materials | Discovered new exit (range 3) 1047 | -10/Materials | Discovered new exit (range 7) 1136 | -10/Materials | Discovered new exit (range 5) 1233 | -10/Materials | Discovered new exit (range 8) 1289 | -10/Materials | Entered Mines 1297 | -10/Mines | Met a Derelict who couldn't figure out how to use a Trap Extractor 1318 | -10/Mines | Met a Derelict bent on vengeance 1601 | -10/Mines | Learned Materials security intel 1765 | -10/Mines | Discovered new exit (range 5) 1898 | -10/Mines | Discovered new exit (range 5) 2093 | -10/Mines | A weapon hastily lodged in a ceiling crevice suddenly fell to the ground 2298 | -10/Mines | Entered Materials 2298 | -9/Materials | Evolved 2 slots: Utility x2 2299 | -9/Materials | Identified exit to Mines 2952 | -9/Materials | Repaired Lgt. Armor Plating 2986 | -9/Materials | Repaired Autogun 3323 | -9/Materials | Discovered new exit (range 5) 3677 | -9/Materials | Discovered new exit (range 3) 4264 | -9/Materials | Central database locked down 4361 | -9/Materials | Entered Mines 4362 | -9/Mines | Assembled infested the area 4367 | -9/Mines | Escorted by a lone wolf Derelict 4368 | -9/Mines | Assisted by a Guerilla fighting off Assembled 4387 | -9/Mines | Learned location of Storage (-8) 4618 | -9/Mines | Received a Rocket Launcher from a helpful Derelict 4719 | -9/Mines | Build established: Scavenger-Mutant 4838 | -9/Mines | Discovered new exit (range 13) 5070 | -9/Mines | Build established: Mutant 5485 | -9/Mines | A Derelict revealed a hidden shortcut to a safe place 5617 | -9/Mines | Deemed a non-threat by the Exiles lab entrance 5617 | -9/Mines | Discovered new exit (range 5) 5655 | -9/Mines | Build established: Scavenger-Mutant 5944 | -9/Mines | Found a damaged Exp. Sensor Array with a note attached 5948 | -9/Mines | Found Prototype Device 5979 | -9/Mines | Assisted by bots powering up and referring to "LRC-V3" 6283 | -9/Mines | Discovered new exit (range 5) 6643 | -9/Mines | Entered Exiles 6643 | -9/Exiles | Accompanied by 3 allies 6644 | -9/Exiles | Identified exit to Mines 6685 | -9/Exiles | Met 8R-AWN 6742 | -9/Exiles | Met EX-HEX 7042 | -9/Exiles | Met EX-DEC 7087 | -9/Exiles | Visited The Gauntlet 7189 | -9/Exiles | Build established: Mutant 7407 | -9/Exiles | Learned location of Zion (-7) 7437 | -9/Exiles | Met EX-BIN 7566 | -9/Exiles | Discovered exit to Mines (range 16) 7616 | -9/Exiles | Entered Mines 7616 | -8/Mines | Accompanied by 3 allies 7655 | -8/Mines | Lost 4 parts (2u2w) 8003 | -8/Mines | Core integrity fell below 50% 8220 | -8/Mines | Discovered new exit (range 6) 8504 | -8/Mines | Discovered new exit (range 16) 8536 | -8/Mines | Build established: Scavenger-Mutant 9069 | -8/Mines | Entered Materials 9069 | -8/Materials | Evolved 2 slots: Propulsion x1, Utility x1 9069 | -8/Materials | Discovered new exit (range 8) 10139 | -8/Materials | Identified Exp. Sensor Array 10246 | -8/Materials | Discovered new exit (range 16) 11199 | -8/Materials | Repaired Gauss Rifle 11309 | -8/Materials | Repaired Exp. Sensor Array 11468 | -8/Materials | Discovered new exit (range 10) 11811 | -8/Materials | Repaired Lgt. Treads 11951 | -8/Materials | Discovered new exit (range 9) 11985 | -8/Materials | Identified exit to Storage 12012 | -8/Materials | Entered Storage 12421 | -8/Storage | Build established: Mutant 13550 | -8/Storage | Used back door to open Recycling access 13550 | -8/Storage | Discovered new exit (range 4) 13551 | -8/Storage | Identified exit to Recycling 13575 | -8/Storage | Entered Recycling 13726 | -8/Recycling | Spotter reported a threat 13739 | -8/Recycling | Spotter reported a threat 13746 | -8/Recycling | Spotter reported a threat 13779 | -8/Recycling | Spotter reported a threat 13785 | -8/Recycling | Spotter reported a threat 13793 | -8/Recycling | Spotter reported a threat 13796 | -8/Recycling | Spotter reported a threat 13838 | -8/Recycling | Spotter reported a threat 13877 | -8/Recycling | Spotter reported a threat 13890 | -8/Recycling | Spotter reported a threat 13891 | -8/Recycling | Spotter reported a threat 13918 | -8/Recycling | Spotter reported a threat 13918 | -8/Recycling | Spotter reported a threat 13920 | -8/Recycling | Spotter reported a threat 13930 | -8/Recycling | Spotter reported a threat 13936 | -8/Recycling | Spotter reported a threat 13943 | -8/Recycling | Spotter reported a threat 13966 | -8/Recycling | Discovered new exit (range 16) 13967 | -8/Recycling | Spotter reported a threat 13977 | -8/Recycling | Spotter reported a threat 13981 | -8/Recycling | Spotter reported a threat 13983 | -8/Recycling | Spotter reported a threat 13996 | -8/Recycling | Spotter reported a threat 14019 | -8/Recycling | Spotter reported a threat 14076 | -8/Recycling | Spotter reported a threat 14086 | -8/Recycling | Spotter reported a threat 14086 | -8/Recycling | Spotter reported a threat 14092 | -8/Recycling | Spotter reported a threat 14120 | -8/Recycling | Spotter reported a threat 14128 | -8/Recycling | Spotter reported a threat 14129 | -8/Recycling | Spotter reported a threat 14133 | -8/Recycling | Spotter reported a threat 14139 | -8/Recycling | Spotter reported a threat 14151 | -8/Recycling | Spotter reported a threat 14173 | -8/Recycling | Spotter reported a threat 14192 | -8/Recycling | Spotter reported a threat 14212 | -8/Recycling | Spotter reported a threat 14215 | -8/Recycling | Spotter reported a threat 14215 | -8/Recycling | Spotter reported a threat 14226 | -8/Recycling | Spotter reported a threat 14230 | -8/Recycling | Spotter reported a threat 14231 | -8/Recycling | Identified exit to Factory 14268 | -8/Recycling | Spotter reported a threat 14278 | -8/Recycling | Spotter reported a threat 14279 | -8/Recycling | Spotter reported a threat 14283 | -8/Recycling | Spotter reported a threat 14325 | -8/Recycling | Entered Factory 14325 | -6/Factory | Accompanied by 9 allies 14325 | -6/Factory | Evolved 4 slots: Propulsion x1, Utility x3 14349 | -6/Factory | Discovered new exit (range 11) 14353 | -6/Factory | Identified exit to Factory 14366 | -6/Factory | Build established: Commander-Mutant 14534 | -6/Factory | Entered another Factory area 14534 | -5/Factory | Evolved 2 slots: Propulsion x1, Utility x1 14675 | -5/Factory | Spotted B-75 Beast 14681 | -5/Factory | Sucked down chute 14681 | -5/Factory | Entered Waste 14682 | -5/Waste | Met a frightened Derelict 14695 | -5/Waste | Spotted C-40 Crusher 14696 | -5/Waste | EMP discharged 14716 | -5/Waste | Spotted C-40 Crusher 14732 | -5/Waste | Spotted C-40 Crusher 14739 | -5/Waste | Spotted C-40 Crusher 14742 | -5/Waste | Spotted C-40 Crusher 14756 | -5/Waste | Spotted C-40 Crusher 14757 | -5/Waste | Discovered new exit (range 11) 14767 | -5/Waste | Identified exit to Factory 14767 | -5/Waste | Entered Factory 14782 | -5/Factory | Identified exit to Upper Caves 14811 | -5/Factory | Build established: Hacker-Mutant 14879 | -5/Factory | Identified exit to DSF 15198 | -5/Factory | Fabricated Nuclear Pulse Array? 15231 | -5/Factory | Entered Upper Caves 15240 | -5/Upper Caves | Identified exit to Upper Caves 15295 | -5/Upper Caves | Attracted the attention of an 0b10 outpost 15651 | -5/Upper Caves | Learned Factory garrison access intel 15668 | -5/Upper Caves | Encountered a Warlord checkpoint 15715 | -5/Upper Caves | Entered another Upper Caves area 15718 | -5/Upper Caves | Discovered new exit (range 6) 15874 | -5/Upper Caves | Learned Factory emergency access door positions 15874 | -5/Upper Caves | Learned Factory terminal intel 15969 | -5/Upper Caves | Learned location of 1 exit from Factory 15988 | -5/Upper Caves | Discovered new exit (range 10) 15991 | -5/Upper Caves | Identified exit to Warlord 16010 | -5/Upper Caves | Entered Warlord 16029 | -5/Warlord | System corruption cleaned by Quarantine Array 16108 | -5/Warlord | Visited the Vortex Lab 16110 | -5/Warlord | Found Prototype Piercing Weapon 16110 | -5/Warlord | Identified Vortex Lance 16113 | -5/Warlord | Found Vortex Lance 16129 | -5/Warlord | Warlord's base attacked by MAIN.C 16166 | -5/Warlord | Met Warlord 16354 | -5/Warlord | Opened side exit 16382 | -5/Warlord | Discovered new exit (range 9) 16385 | -5/Warlord | Identified exit to Proximity Caves 16385 | -5/Warlord | Entered Proximity Caves 16387 | -4/Proximity Caves | Attracted the attention of an 0b10 checkpoint 16493 | -4/Proximity Caves | Build established: Hacker-Scout 16528 | -4/Proximity Caves | Spotted B-86 Titan 16620 | -4/Proximity Caves | Discovered new exit (range 16) 16626 | -4/Proximity Caves | Identified exit to Factory 16634 | -4/Proximity Caves | Entered Factory 16634 | -4/Factory | Evolved 2 slots: Power x1, Propulsion x1 16635 | -4/Factory | Identified exit to Research 16636 | -4/Factory | Identified exit to Extension 16638 | -4/Factory | Loaded intel: 28 terminal locations 16639 | -4/Factory | Loaded intel: 4 garrison access locations 16776 | -4/Factory | Discovered exit to Research (range 21) 16803 | -4/Factory | Spotted B-86 Titan 16896 | -4/Factory | Fabricated System Backup Module? 17038 | -4/Factory | Sucked down chute 17038 | -4/Factory | Entered Waste 17039 | -4/Waste | Met a frightened Derelict 17043 | -4/Waste | Spotted C-40 Crusher 17049 | -4/Waste | Spotted C-40 Crusher 17053 | -4/Waste | Spotted C-40 Crusher 17054 | -4/Waste | Spotted C-40 Crusher 17061 | -4/Waste | Spotted C-40 Crusher 17070 | -4/Waste | Spotted C-40 Crusher 17077 | -4/Waste | Discovered new exit (range 22) 17086 | -4/Waste | Build established: Hacker-Ninja 17093 | -4/Waste | Found Broken Enh. Force Lance 17095 | -4/Waste | Identified exit to Factory 17095 | -4/Waste | Entered Factory 17240 | -4/Factory | Spotted B-86 Titan 17572 | -4/Factory | Build established: Hacker-Scout 17626 | -4/Factory | Identified exit to Upper Caves 17669 | -4/Factory | Entered Upper Caves 17692 | -4/Upper Caves | Encountered a Warlord checkpoint 17875 | -4/Upper Caves | Discovered new exit (range 7) 17876 | -4/Upper Caves | Learned Research terminal intel 17878 | -4/Upper Caves | Identified exit to Upper Caves 17878 | -4/Upper Caves | Entered another Upper Caves area 18129 | -4/Upper Caves | Discovered exit to Research (range 21) 18184 | -4/Upper Caves | Attracted the attention of an 0b10 outpost 18200 | -4/Upper Caves | Self-destructed Last Messages --------------- 17893_ Lgt. Nuclear Core self-destruct mechanism malfunctions. 17910_ 8I03T6Q<63RP8GTGK9OJLDT31 18024_ System corrupted: Heat flow error (+213). 18129_ EXIT=FOUND: RESEARCH 18183_ Penetrated by Slug. 18183_ Slug penetrates Wall. 18184_ Y-72 Warden: "DETECTED UNIDENTIFIED DERELICT." 18188_ Y-72 Warden: "REQUESTING BACKUP." 18189_ Imp. System Shield destroyed. 18190_ S-27 Virus destroyed. 18192_ Gravmag Array destroyed. 18192_ S-27 Virus destroyed. 18194_ Fission Core destroyed. 18194_ Destroyed Fission Core. 18197_ S-27 Virus system terminally corrupted. 18197_ C-30 ARC bursts open, deploying its payload. 18197_ G-73 Enforcer unfolds itself. 18197_ G-67 Veteran unfolds itself. 18197_ E-15 Imp unfolds itself. 18200_ Imp. Antigrav System destroyed. Map ----- +----------------------------------------------------+ | ?????????????????????????????????????????????????? | | ?????????????????????????????????????????????????? | | ?????????????????????????????????????????????????? | | ?????????????????????????????????????????????????? | | ?????????????????????????????????????????????????? | | ?????????????????????????????????????????????????? | | ?????????????????????????????????????????????????? | | ?????????????????????????????????????????????????? | | ?????????????????????????????????????????????????? | | ?????????????????????????????????????????????????? | | ?????????????????????????????????????????????????? | | ?????????????????????????????????????????????????? | | ?????????????????????????????????????????????????? | | ?????????????????????????????????????????????????? | | ?????????????????????????????????????????????????? | | ?????????????????????????????????????????????????? | | ?????????????????????????????????????????????????? | | ?????????????????????????????????????????????????? | | ?????????????????????????????????????????????????? | | ????????????????????###?????????######???????????? | | ???????????????????## ########## ###?????????? | | ????????????### #### ## ###???????? | | ????????????# l ##??????? | | ????????????# [%g #####??? | | ???????? ## l## ##?? | | ?????????????????## @ e;# ##? | | ??????????????????# =Y## ## | | ??????????????????## %[ # | | ???????????????????## ## ## ## # | | ????????????????????## # # ########## ## | | ?????????????????????#### # # ####???????#? | | ????????????????????????## ###//### #????????? | | ?????????????????????????#g + + ##???????? | | ?????????????????????????#gg# # ##??????? | | ??????????????????h#?????# #""""""# ##?###?? | | ?????????????????h? ????##% ######## ## ##? | | ??????????????????< ????# g # #? | | ?????????????????? #???# ######## #? | | ?????????????????? ???# #??????# #? | | ?????????????????? ### #??????# #? | | ??????????????????? ##?????# #? | | ??????????????????# ####### #? | | ??????????????????# ???# ##? | | ?????????????????## ???## ##?? | | ?????????????????# ????# ##??? | | ?????????????????? ??### ##??? | | ?????????????????? ??# #??? | | ??????????????????# #??###### ### #??? | | ??????????????????# #??????## ##?# ##?? | | ??????????????????# ######## #### ##? | +----------------------------------------------------+ Best States ------------- Heat Dissipation 45 Energy Generation 18 Energy Capacity 310 Matter Stores 300 Matter Capacity 300 Sight Range 22 Robot Scan Range 20 Terrain Scan Density 10 Jamming Range 16 Additional Mass Support 9 Armor Coverage 675 Resistance: EM 25 Propulsion Shielding 66 Utility Shielding 33 Reclamation Efficiency 15 Evasion (%) 58 Targeting Accuracy 6 Melee Accuracy 5 Recoil Reduction 3 Offensive Hacking 20 Defensive Hacking 32 Item Schematics ----------------- Coil Gun | -8/Storage | Hacked System Backup Module | -8/Recycling | Hacked Lrg. Storage Unit | -8/Recycling | Hacked Med. Storage Unit | -8/Recycling | Hacked Imp. Signal Interpreter | -8/Recycling | Hacked Centrium Wheel | -5/Factory | Hacked Nuclear Pulse Array | -5/Factory | Hacked Enh. Force Lance | -4/Factory | Scanalyzed Q-thruster | -4/Factory | Scanalyzed Imp. Cloaking Device | -4/Factory | Scanalyzed Robot Schematics ------------------ None Fabricated ------------ Nuclear Pulse Array | x2 | -5/Factory System Backup Module | x2 | -4/Factory Alien Tech Used ----------------- None Achievements -------------- None Challenges ------------ None Game ------ Seed DisposableArchitectKit Manual? 0 Play Time 03:00:02 Cumulative 270.3 hours Start 2021.10.30 @ 18:19:42 End 2021.10.31 @ 03:00:01 Sessions 1 Manual Loads 0 Difficulty Rogue Special Mode None Game No. 189 Rogue 189 Adventurer 0 Explorer 0 Win Type - Total 6 Types 6/0/0/0/0/0/0/0/0 Lore% 56 Gallery% 64 Achievement% 51 Wizard Run 0 Options --------- ASCII 1 Keyboard 1 Movement Arrows Keybinds 0 Fullscreen 1 Font 24/Smallcaps Map View 76x50 Tactical HUD 1 Map Filters NONE Filters NONE Steam 1 RUN: c136afc3-2382-41d0-b461-f7878931cabc